Cogmind - Beta 15 @@@ ROGUE MODE // 2025.05.07 @ 16:20:51 Player: hanna Result: Self-destructed Performance ------------- Evolutions (2) 1000 Regions Visited (4) 800 Robots Destroyed (49) 245 Value Destroyed (1753) 1753 Prototype IDs (0) 0 Alien Tech Used (0) 0 Bonus (215) 215 TOTAL SCORE: 4013 Bonus ------- High Alert Combat Kills 15 Entered Garrisons 200 Cogmind --------- Core Integrity 265/550 Matter 23/300 Energy 100/100 System Corruption 1% Temperature Cool (0) Movement Walking (120) Location -8/Garrison Parts ------- > --- POWER (2) -------- (None) > --- PROPULSION (2) --- Carbon-fiber Leg > --- UTILITY (5) ------ Medium Storage Unit > --- WEAPON (2) ------- Mini Grenade Launcher Mini Grenade Launcher > --- INVENTORY (10) --- Aluminum Leg Aluminum Leg Relay Coupler [Grunt] (24) EM Pulse Cannon Heavy Assault Rifle Peak State ------------ > --- POWER ------------ Light Ion Engine Light Nuclear Core > --- PROPULSION ------- Carbon-fiber Leg Carbon-fiber Leg > --- UTILITY ---------- Cooling System Medium Storage Unit High-powered Tractor Beam > --- WEAPON ----------- Mini Grenade Launcher Mini Grenade Launcher > --- INVENTORY -------- Aluminum Leg Aluminum Leg Carbon-fiber Leg EM Pulse Cannon Heavy Assault Rifle [Rating: 21] Favorites ----------- Power Ion Engine Engine Ion Engine Power Core Light Nuclear Core Propulsion Carbon-fiber Leg Treads Light Treads Leg Carbon-fiber Leg Utility Medium Storage Unit Device Cooling System Storage Medium Storage Unit Protection Medium Armor Plating Weapon Mini Grenade Launcher Energy Gun Small Laser Energy Cannon EM Pulse Cannon Ballistic Gun Heavy Assault Rifle Launcher Mini Grenade Launcher Build | -11 -10 -9 -8 -8 ------- Run | Yrd Mat Mat Mat Gar Slots Evolved 4 | . . 2 2 . Power 1 | . . 1 . . Propulsion . | . . . . . Utility 3 | . . 1 2 . Weapon . | . . . . . Parts Attached 32 | 8 8 9 4 3 Power 7 | 1 1 3 1 1 Engine 6 | 1 1 3 1 . Core 1 | . . . . 1 Reactor . | . . . . . Propulsion 10 | 4 3 2 . 1 Treads 2 | 2 . . . . Leg 8 | 2 3 2 . 1 Wheel . | . . . . . Hover . | . . . . . Flight . | . . . . . Utility 6 | 1 2 2 1 . Device 2 | . . 1 1 . Storage 3 | 1 2 . . . Processor . | . . . . . Hackware . | . . . . . Protection 1 | . . 1 . . Artifact . | . . . . . Weapon 9 | 2 2 2 2 1 Energy Gun 5 | 2 2 1 . . Energy Cannon 1 | . . . . 1 Ballistic Gun 1 | . . 1 . . Ballistic Cannon . | . . . . . Launcher 2 | . . . 2 . Special Weapon . | . . . . . Impact Weapon . | . . . . . Slashing Weapon . | . . . . . Piercing Weapon . | . . . . . Special Melee Weapon . | . . . . . Unidentified Prototypes . | . . . . . Parts Lost 16 | . 4 4 2 6 Power 6 | . 1 1 2 2 Propulsion 4 | . 2 . . 2 Utility 3 | . . 1 . 2 Weapon 3 | . 1 2 . . Highest Loss Streak 3 | . 1 3 1 2 To Critical Strikes . | . . . . . Average Backups 4 | 1 1 5 5 5 Power . | . 1 1 . . Propulsion 1 | . . 2 2 2 Utility . | . . . . . Weapon 1 | . . 1 2 2 Tool/Special . | . . . . . Unused Backups 7 | . 1 2 2 2 Power 1 | . 1 . . . Propulsion 3 | . . 2 . 1 Utility 1 | . . . . 1 Weapon 2 | . . . 2 . Tool/Special . | . . . . . Average Slot Usage (%) 76 | . 83 83 71 65 Engine 12 | . 13 18 16 4 Core 1 | . . . . 3 Leg 20 | . 26 19 16 17 Device 8 | . . 5 11 17 Storage 12 | . 15 16 9 9 Energy Gun 10 | . 27 13 . . Ballistic Gun 3 | . . 7 . 3 Launcher 5 | . . . 17 9 Peak Build Rating 21 | 6 7 16 18 21 Average Rating 12 | 3 5 13 15 17 On Entrance 8 | . 6 7 13 18 Naked Turns . | . . . . . Heaviest Build 31 | 12 21 31 26 27 Greatest Support 30 | 20 20 30 30 30 Greatest Overweight (x) 1 | . 1 1 1 . Average Overweight (x) . | . . . . . Largest Inventory Capacity 10 | 8 10 10 10 10 Average Capacity 9 | 6 9 10 10 10 Most Carried 9 | 5 4 8 9 7 Average Carried 4 | 1 1 5 4 5 Final Capacity 10 | 8 10 10 10 10 Final Carried 8 | 1 2 8 5 5 Class Distribution -------------------- 85% | Mutant 14% | Scavenger-Mutant Dominant Class ---------------- Mutant | -10/Materials Mutant | -9/Materials Mutant | -8/Materials Mutant | -8/Garrison Resources | -11 -10 -9 -8 -8 ----------- Run | Yrd Mat Mat Mat Gar Matter Collected 851 | 115 223 194 248 71 Remotely 270 | . . . 199 71 Salvage Created 1301 | . 338 423 430 110 Parts 80 | . 15 36 21 8 Haulers Intercepted . | . . . . . Recyclers Shooed 2 | . 1 . 1 . Parts Field Recycled . | . . . . . Retrieved Matter . | . . . . . Parts Self-Destructed . | . . . . . Prevented . | . . . . . Kills | -11 -10 -9 -8 -8 ------- Run | Yrd Mat Mat Mat Gar Combat Hostiles Destroyed 40 | . 10 14 11 5 Guns 22 | . 7 14 . 1 Cannons 1 | . . . . 1 AOE 17 | . 3 . 11 3 Classes Destroyed 11 | . 2 3 6 . Worker 1 | . . . 1 . Builder 3 | . . . 3 . Tunneler 1 | . . . 1 . Recycler 3 | . . . 3 . Watcher 1 | . . 1 . . Swarmer 13 | . 3 8 . 2 Grunt 21 | . 7 3 8 3 Brawler 1 | . . . 1 . Duelist 1 | . . 1 . . Sentry 3 | . . 2 1 . Hunter 1 | . . . 1 . Best Kill Streak 9 | . 7 4 9 3 Combat Bots Only 7 | . 7 4 5 3 Max Kills in Single Turn 3 | . 3 1 3 2 Gunslinging . | . . . . . Exploded 3 | . 3 . 2 2 Melee . | . . . . . Uniques/NPCs Destroyed . | . . . . . Combat | -11 -10 -9 -8 -8 -------- Run | Yrd Mat Mat Mat Gar Hostile Shots Fired 263 | . 63 95 28 77 Missed 85 | . 22 25 12 26 Hits 178 | . 41 70 16 51 Melee 2 | . . 2 . . Projectile 176 | . 41 68 16 51 Critical Strikes 4 | . . 3 . 1 Damage Taken 2273 | . 521 777 307 668 Core 488 | . 76 127 42 243 Absorbed by Shields . | . . . . . Regen/Repaired (Parts) 195 | . . 195 . . Core Remaining (%) 79 | 100 69 68 . . Volleys Fired 97 | . 22 40 18 17 Largest 2 | . 2 2 2 2 Hottest 90 | . 90 90 60 63 Shots Fired 167 | . 43 68 36 20 Gun 121 | . 43 68 . 10 Cannon 4 | . . . . 4 Launcher 42 | . . . 36 6 Special . | . . . . . Kinetic 33 | . . 23 . 10 Thermal 77 | . 32 45 . . Explosive 42 | . . . 36 6 Electromagnetic 15 | . 11 . . 4 Robot Hit Streak 12 | . 7 7 12 4 Robot Miss Streak 5 | . 2 5 1 2 Penetration Max . | . . . . . Secondary Targets 4 | . 1 3 . . Max Gunslinging Chain 1 | . 1 1 . . Shots Hit Robots 104 | . 31 38 25 10 Core Hits 86 | . 16 21 39 10 Critical Kills . | . . . . . Critical Parts Destroyed . | . . . . . Critical Strikes 1 | . 1 . . . Burn 1 | . 1 . . . Melee Attacks . | . . . . . Impact . | . . . . . Slashing . | . . . . . Piercing . | . . . . . Sneak Attacks . | . . . . . Combat Hostiles . | . . . . . Follow-up Attacks . | . . . . . Damage Inflicted 3519 | . 645 534 1914 426 Guns 974 | . 391 534 . 49 Cannons 44 | . . . . 44 Explosions 2499 | . 253 . 1913 333 Melee . | . . . . . Ramming 2 | . 1 . 1 . Kinetic 288 | . . 239 . 49 Thermal 821 | . 526 295 . . Explosive 2246 | . . . 1913 333 Electromagnetic 162 | . 118 . . 44 Impact . | . . . . . Slashing . | . . . . . Piercing . | . . . . . Highest Corruption 1 | . . . . 1 Average Corruption 1 | . . . . 1 Corruption Purged . | . . . . . Corruption Blocked . | . . . . . Overload Shots . | . . . . . Overflow Damage 86 | . 7 . 76 3 Projectiles . | . . . . . Explosions 86 | . 7 . 76 3 Melee . | . . . . . Knockbacks . | . . . . . Impact . | . . . . . Kinetic . | . . . . . Secondary . | . . . . . Self-Inflicted Damage 345 | . 50 . 64 231 Shots 10 | . 1 . 3 6 Rammed . | . . . . . Targets Rammed 2 | . 1 . 1 . Kicked 2 | . 1 . 1 . Crushed . | . . . . . Highest Temperature 261 | . 261 249 . . Average Temperature 112 | . 106 120 . . Received Heat Transfer 561 | . 240 195 99 27 Effects 2 | . 2 . . . Energy Bleed 2 | . 2 . . . Siege Activations . | . . . . . Martial Activations . | . . . . . Shielding Activations . | . . . . . Robots Disrupted . | . . . . . Combat Hostiles . | . . . . . Robots Corrupted . | . . . . . Combat Hostiles . | . . . . . Parts Fried . | . . . . . Impact Corruptions . | . . . . . Robots Melted . | . . . . . Combat Hostiles . | . . . . . Parts Melted 2 | . 2 . . . Heat Transferred 1863 | . 1129 734 . . Parts Sabotaged . | . . . . . Parts Stolen . | . . . . . Parts Stripped . | . . . . . Power Chain Reactions 2 | . 2 . . . Alert | -11 -10 -9 -8 -8 ------- Run | Yrd Mat Mat Mat Gar Maximum Alert Level 2 | . . . 2 2 Low Security (%) 64 | 100 100 100 56 . Level 1 8 | . . . 33 16 Level 2 27 | . . . 9 83 Level 3 . | . . . . . Level 4 . | . . . . . Level 5 . | . . . . . High Security . | . . . . . Max Security . | . . . . . Peak Influence 602 | . 139 192 434 602 Initial 275 | . . 33 52 275 Average 232 | . 74 116 202 504 Influence Increases 1476 | . 249 388 482 357 Destroy 0b10 Robot/C 800 | . 200 280 220 100 Destroy 0b10 Robot/NC 45 | . . 5 40 . Destroy Leader 142 | . 40 52 50 . Successful Hack 20 | . . 6 . 14 Disable Machine 30 | . . . 30 . Anti-Garrison Action 150 | . . . . 150 Destroy Structure 229 | . 9 . 142 78 Lose Combat Pursuer 60 | . . 45 . 15 Influence Decreases 904 | . 170 341 184 209 Entered New Map 269 | . . 46 74 149 Time Decay 475 | . 130 255 90 . Lost Part 160 | . 40 40 20 60 Squads Dispatched 4 | . 2 . 2 . Investigation 1 | . 1 . . . Extermination . | . . . . . Reinforcement 2 | . 1 . 1 . Assault . | . . . . . Garrison 1 | . . . 1 . Intercept . | . . . . . Searches Triggered . | . . . . . Construction Impeded . | . . . . . Haulers Reinforced . | . . . . . Active Scanning Responses . | . . . . . Cargo Convoy Interrupts . | . . . . . Stealth | -11 -10 -9 -8 -8 --------- Run | Yrd Mat Mat Mat Gar Distress Signals 1 | . . 1 . . Communications Jammed . | . . . . . Distress Signals . | . . . . . Times Spotted 60 | . 12 22 14 12 Peak Tracking Total 9 | . 5 9 4 5 Tactical Retreats 3 | . . 2 . 1 Traps | -11 -10 -9 -8 -8 ------- Run | Yrd Mat Mat Mat Gar Traps Triggered 2 | . 1 1 . . Indirectly . | . . . . . Trap Hack Attempts . | . . . . . Triggered . | . . . . . Disarmed . | . . . . . Reprogrammed . | . . . . . Reused . | . . . . . Traps Extracted . | . . . . . Installed . | . . . . . Triggered . | . . . . . Machines | -11 -10 -9 -8 -8 ---------- Run | Yrd Mat Mat Mat Gar Machines Disabled 5 | . . . 2 3 Max in Single Turn 2 | . . . 1 2 Garrison Relay 1 | . . . . 1 Phase Generator 1 | . . . . 1 Machines Repaired . | . . . . . Machines Dismantled . | . . . . . Machines Sabotaged . | . . . . . Overloaded Fab Kills . | . . . . . Hacking | -11 -10 -9 -8 -8 --------- Run | Yrd Mat Mat Mat Gar Machines Accessed 5 | . . 1 2 2 Terminals 3 | . . . 1 2 Fabricators . | . . . . . Repair Stations 1 | . . 1 . . Recycling Units . | . . . . . Scanalyzers . | . . . . . Garrison Access 1 | . . . 1 . Total Hacks 15 | . . 5 3 7 Successful 8 | . . 4 3 1 Failed 7 | . . 1 . 6 Catastrophic 2 | . . . . 2 Database Lockouts . | . . . . . Manual . | . . . . . Terminals 9 | . . . 2 7 Fabricators . | . . . . . Repair Stations 5 | . . 5 . . Recycling Units . | . . . . . Scanalyzers . | . . . . . Garrison Access 1 | . . . 1 . Terminal Hacks 3 | . . . 2 1 Alert Level 2 | . . . 2 . Garrison Registry 1 | . . . . 1 Fabricator Hacks . | . . . . . Repair Station Hacks 4 | . . 4 . . Scan Component 2 | . . 2 . . Repair 2 | . . 2 . . Recycling Unit Hacks . | . . . . . Scanalyzer . | . . . . . Garrison Access Hacks 1 | . . . 1 . Unlock Access 1 | . . . 1 . Unauthorized Hacks . | . . . . . Terminals . | . . . . . Fabricators . | . . . . . Repair Stations . | . . . . . Recycling Units . | . . . . . Scanalyzers . | . . . . . Garrison Access . | . . . . . Data Cores Recovered . | . . . . . Used . | . . . . . Hacking Detections 5 | . . 1 2 2 Full Trace Events 1 | . . . . 1 Feedback Events 1 | . . . . 1 Corruption 1 | . . . . 1 Feedback Blocked . | . . . . . Robot Schematics Acquired . | . . . . . Robots Built . | . . . . . Authchips . | . . . . . Time . | . . . . . Total Robot Build Rating . | . . . . . Part Schematics Acquired . | . . . . . Parts Built . | . . . . . Authchips . | . . . . . Time . | . . . . . Total Part Build Rating . | . . . . . Parts Repaired 2 | . . 2 . . Time 76 | . . 76 . . Parts Recycled . | . . . . . Recycled Matter . | . . . . . Retrieved Matter . | . . . . . Retrieved Components . | . . . . . Parts Scanalyzed . | . . . . . Part Schematics Acquired . | . . . . . Parts Damaged . | . . . . . Bothacking | -11 -10 -9 -8 -8 ------------ Run | Yrd Mat Mat Mat Gar Used RIF Installer . | . . . . . Robots Hacked . | . . . . . Non-combat . | . . . . . Combat . | . . . . . Robot Hacks Applied . | . . . . . Relay Couplers Released 5 | . . . . 5 Machine Destruction 5 | . . . . 5 Fabnet Peak Effective % . | . . . . . Robots Rewired . | . . . . . Allies Hacked . | . . . . . Hacks Repelled . | . . . . . Allies | -11 -10 -9 -8 -8 -------- Run | Yrd Mat Mat Mat Gar Total Allies . | . . . . . Largest Group . | . . . . . Highest-Rated Group . | . . . . . Highest-Rated Ally . | . . . . . Total Orders . | . . . . . Ally Attacks . | . . . . . Total Damage . | . . . . . Kills . | . . . . . Allies Corrupted . | . . . . . Allies Melted . | . . . . . Intel | -11 -10 -9 -8 -8 ------- Run | Yrd Mat Mat Mat Gar Active Infowar (turns) . | . . . . . Robot Analysis Total . | . . . . . Derelict Logs Recovered . | . . . . . Drone Launches . | . . . . . Drone Recoveries . | . . . . . Exploration | -11 -10 -9 -8 -8 ------------- Run | Yrd Mat Mat Mat Gar Turns Passed 1699 | 73 350 560 189 527 Spaces Moved 925 | 62 201 233 98 331 Core 28 | 28 . . . . Treads . | . . . . . Legs 897 | 34 201 233 98 331 Wheels . | . . . . . Hover . | . . . . . Flight . | . . . . . Fastest Speed 50 | 50 120 120 120 120 Average Speed 126 | 88 126 146 125 120 Slowest Speed 190 | 120 190 190 190 120 Overloaded Moves . | . . . . . Propulsion Burnouts . | . . . . . Robots Hopped . | . . . . . Potential Cave-ins . | . . . . . Cave-ins Triggered . | . . . . . Exploration Rate (%) 26 | 4 41 26 23 39 Regions Visited 4 Branch Regions . Pre-discovered Areas . | . . . . . Known Exits Taken 1 | . . . 1 . Unknown Exits Taken 3 | 1 1 1 . . Scrap Searched . | . . . . . Spaces Dug . | . . . . . Terrain Destroyed 319 | . 8 . 201 110 Melee . | . . . . . Projectile . | . . . . . AOE 319 | . 8 . 201 110 Terrain Rammed . | . . . . . Walls Destroyed . | . . . . . Machines Disabled . | . . . . . Actions | -11 -10 -9 -8 -8 --------- Run | Yrd Mat Mat Mat Gar Total 1281 | 80 254 383 128 436 Wait 157 | . 8 76 . 73 Move 922 | 61 200 232 98 331 Hop . | . . . . . Pick Up 42 | 9 10 18 3 2 Fast Attach . | . . . . . Attach 26 | 6 5 9 3 3 Detach 1 | . . . . 1 Swap 22 | 2 4 5 2 9 Drop 12 | 2 4 3 3 . Fire 97 | . 22 40 18 17 Melee . | . . . . . Ram . | . . . . . Kick 2 | . 1 . 1 . Crush . | . . . . . Escape Stasis . | . . . . . Rewire . | . . . . . Trap . | . . . . . Miscellaneous . | . . . . . Route ------- -11/Scrapyard -10/Materials -9/Materials -8/Materials -8/Garrison (discovered 3 exits: [Fac x3]) History --------- Turn | Location | Event 2 | -11/Scrapyard | Discovered new exit (range 16) 74 | -11/Scrapyard | Entered Materials 230 | -10/Materials | Destroyed 7 combat bots 298 | -10/Materials | Discovered new exit (range 14) 323 | -10/Materials | Build established: Mutant 424 | -10/Materials | Entered another Materials area 424 | -9/Materials | Evolved 2 slots: Power x1, Utility x1 605 | -9/Materials | Lost 3 parts (1u2w) 830 | -9/Materials | Discovered new exit (range 15) 911 | -9/Materials | Repaired Carbon-fiber Leg 952 | -9/Materials | Repaired Carbon-fiber Leg 984 | -9/Materials | Entered another Materials area 984 | -8/Materials | Evolved 2 slots: Utility x2 1138 | -8/Materials | Garrison activated, responded to threat 1173 | -8/Materials | Identified exit to Garrison 1173 | -8/Materials | Entered Garrison 1201 | -8/Garrison | Triggered checkpoint 1236 | -8/Garrison | Discovered new exit (range 55) 1236 | -8/Garrison | Discovered new exit (range 44) 1236 | -8/Garrison | Discovered new exit (range 62) 1258 | -8/Garrison | Garrison Relay disabled 1407 | -8/Garrison | Phase Generator disabled 1649 | -8/Garrison | Triggered checkpoint 1685 | -8/Garrison | Core integrity fell below 50% 1700 | -8/Garrison | Self-destructed Last Messages --------------- The unstable cave ceiling collapses. Connecting with Garrison Terminal... Feedback: System corruption (+1%). ALERT: Suspicious activity at Terminal G003. Transmitting hostile system tracking data. The unstable cave ceiling collapses. Lgt. Ion Engine destroyed. The unstable cave ceiling collapses. S-10 Pest destroyed. Acquired 18 matter. Lgt. Nuclear Core destroyed. S-10 Pest misfires. S-10 Pest destroyed. Acquired 20 matter. Beams of light sweep through the air. An alarm sounds. Cooling System destroyed. Carbon-fiber Leg destroyed. S-10 Pest destroyed. Hpw. Tractor Beam destroyed. Map ----- +----------------------------------------------------+ | | | | | | | | | | | | | | | | | | | | | ?????????????????????????????????????????????????? | | ?????????????????????????????????????????????????? | | ?????????????????????????????????????????????????? | | ????????????????????????????????????????########?? | | ????????????????????????????????????????# #T #?? | | ????????????????????????????????????????# " #?? | | ????????????????????????????????????????# " #?? | | ????????????????????????????????????????#### #?? | | ???????????????????????????????????????????## ##?? | | ??????????????????????#######?????????????### #### | | ??????????????????????#!! !!#??############ | | ??????????????????????#!! !!#??# # | | ??????????????????????# #??# # | | ??????????????????????#[[ !!#??# ######### #### | | ??????????????????????#[[ !!#??# #???????# #??? | | ??????????????????????###@###??# #???????# #??? | | ????????????????????????# #???## #???????# #### | | ????????????????????????#s#???# #???????# | | ???#######??????????????#s###### #???????# | | ???#"" ""#??????????????# #???????# #### | | ??### !!####????????????#Y###### #???????# #??# | | ??# ! ! #####????????# #???# #???????# #??# | | ??## ##### ##""#????????###???## #???????# #??? | | ???# #???# ## T#???????????????# #???????# #??? | | ???# #???# ## "#?????#####?????# #???????# #??? | | ???# #?### ## ##?????#"""#?????# #???????# #??? | | ?### ### ## #??????#" "#?????# #???????# #??? | | ?# #??????#" "#?????# #???????# #??? | | ## ##### #??????#" "#?????# #???????# #??? | | #?# ### #??????# ^#?????# #???????# #??? | | #?# # #= # #??????## ##?????#* #???????# #??# | | # #### ## # #??????## ########%=######### #??# | | # # #?????## #### | | # #### # #?????#T = | | # #?# # #?????## *%= | | # #?# # #??????# ######################### | | # #?## ## # #??????# #???????????????????????? | | # #### ##### #??????# #???????????????????????? | | #???# #??????# #???????????????????????? | | # #### #???# #??????# #???????????????????????? | +----------------------------------------------------+ Best States ------------- Heat Dissipation 53 Energy Generation 19 Energy Capacity 630 Matter Stores 300 Matter Capacity 300 Sight Range 16 Terrain Scan Density 10 Armor Coverage 225 Evasion (%) 55 Item Schematics ----------------- None Robot Schematics ------------------ None Fabricated ------------ Nothing Repaired ---------- Carbon-fiber Leg | 2% | -9/Materials Carbon-fiber Leg | 20% | -9/Materials Alien Tech Used ----------------- None Achievements -------------- None Challenges ------------ None Game ------ Seed KineticGlidesysLog Manual? 0 Play Time 00:24:03 Cumulative 25.7 hours Start 2025.05.07 @ 15:56:49 End 2025.05.07 @ 16:20:51 Sessions 1 Manual Loads 0 Difficulty Rogue Special Mode None Game No. 48 Rogue 48 Adventurer 0 Explorer 0 Win Type - Total 0 Types 0/0/0/0/0/0/0/0/0/0 Lore% 15 Gallery% 22 Achievement% 19 Wizard Run 0 Options --------- Layout 1 ASCII 0 Keyboard 0 Movement Mouse Keybinds 0 Fullscreen 1 Font 24/Terminus Map View 50x35 Zoom Use 3% Tactical HUD 0 Map Filters NONE Filters NONE Steam 1 RUN: e6c5dc36-6fa2-4608-ada8-17d8f9e197fd